bitfinex/quotes_BTCUSD_20260311
["timestamp","ask_amount","ask_price","bid_price","bid_amount"]
[1773224781322,7.5e-05,69487.0,69472.0,0.07197144]
[1773224781485,0.00116,69485.0,69472.0,0.07197144]
[1773224781984,7.5e-05,69483.0,69472.0,0.07197144]
[1773224782186,0.00616,69488.0,69472.0,0.07197144]
[1773224782751,0.00616,69488.0,69472.0,0.07297144]
[1773224782953,7.5e-05,69491.0,69472.0,0.07297144]
[1773224783123,0.00116,69487.0,69472.0,0.07297144]
[1773224783342,0.00116,69487.0,69472.0,0.07197144]
[1773224783508,0.00116,69487.0,69472.0,0.07297144]
[1773224783711,0.00616,69487.0,69472.0,0.07297144]
[1773224784107,0.00616,69487.0,69472.0,0.07197144]
[1773224784512,0.00616,69487.0,69472.0,0.07297144]
[1773224784746,0.00616,69487.0,69472.0,0.07197144]
[1773224784940,0.00616,69487.0,69472.0,0.07297144]
[1773224785311,0.00616,69487.0,69472.0,0.07397144]
[1773224785509,0.005,69487.0,69472.0,0.07297144]
[1773224785642,0.00116,69486.0,69472.0,0.07297144]
[1773224786037,0.00116,69486.0,69472.0,0.07197144]
[1773224786337,0.00116,69486.0,69472.0,0.07217144]
[1773224786742,0.00116,69486.0,69472.0,0.07317144]
[1773224786934,0.00116,69486.0,69472.0,0.07217144]
[1773224787364,0.00116,69487.0,69472.0,0.07317144]
[1773224787742,0.00116,69487.0,69472.0,0.07217144]
[1773224787977,0.07702772,69491.0,69472.0,0.07417144]
[1773224788182,0.00116,69490.0,69472.0,0.07417144]
[1773224788393,0.00616,69490.0,69472.0,0.07317144]
[1773224788563,0.005,69490.0,69472.0,0.07417144]
[1773224788780,7.5e-05,69496.0,69473.0,0.00484807]
[1773224788781,0.001235,69496.0,69473.0,0.00484807]
[1773224788953,0.00116,69495.0,69473.0,0.00484807]
[1773224789156,7.5e-05,69496.0,69474.0,0.07196936]
[1773224789383,0.00116,69495.0,69475.0,0.00484807]
[1773224790580,0.00594125,69495.0,69483.0,7.5e-05]
[1773224791400,0.0731084,69495.0,69483.0,7.5e-05]
[1773224791629,0.0731084,69495.0,69479.0,0.07196253]
[1773224791630,0.005,69494.0,69478.0,0.07203925]
[1773224793649,0.005,69492.0,69478.0,7.5e-05]
[1773224794439,0.005,69490.0,69478.0,7.5e-05]
[1773224796033,0.07195383,69489.0,69478.0,7.5e-05]
[1773224796197,0.005,69488.0,69478.0,7.5e-05]
[1773224797156,0.005,69486.0,69478.0,7.5e-05]
[1773224797382,0.005,69484.0,69478.0,7.5e-05]
[1773224802473,0.005,69484.0,69478.0,0.000275]
[1773224802925,0.001085,69485.0,69478.0,0.000275]
[1773224803680,0.00116,69485.0,69479.0,0.07196419]
[1773224804987,0.005,69484.0,69478.0,0.0722401]
[1773224806373,0.07695933,69484.0,69478.0,0.000275]
[1773224806575,0.07195933,69484.0,69478.0,0.07223985]
[1773224806776,0.005,69483.0,69472.0,0.07217046]
[1773224806976,0.005,69483.0,69472.0,0.07217113]
[1773224807533,0.005,69483.0,69473.0,0.07197031]
[1773224808302,0.005,69481.0,69473.0,0.07197031]
[1773224809540,0.005,69481.0,69474.0,0.000275]
[1773224810149,0.07196315,69480.0,69474.0,0.000275]
[1773224810405,0.005,69479.0,69474.0,0.000275]
[1773224810597,0.005,69477.0,69474.0,0.000275]
[1773224811371,0.15835572,69498.0,69475.0,0.07196833]
[1773224811597,0.005075,69491.0,69480.0,0.03979105]
[1773224811773,0.00116,69490.0,69475.0,0.07196833]
[1773224811987,7.5e-05,69483.0,69475.0,0.07196833]
[1773224812680,7.5e-05,69491.0,69475.0,0.07196833]
[1773224813015,0.00116,69490.0,69480.0,0.03979105]
[1773224813570,7.5e-05,69491.0,69480.0,0.03979105]
[1773224813571,7.5e-05,69491.0,69481.0,0.07196211]
[1773224813774,0.001235,69491.0,69481.0,0.07196211]
[1773224816462,0.005,69490.0,69481.0,0.07196211]
[1773224818356,0.006,69490.0,69480.0,0.07196211]
[1773224818559,0.005,69490.0,69480.0,0.07196211]
[1773224818934,0.07195383,69489.0,69479.0,0.07196211]
[1773224819150,0.005,69488.0,69479.0,0.07196211]
[1773224819379,0.005,69488.0,69483.0,7.5e-05]
[1773224820819,0.00116,69487.0,69483.0,7.5e-05]
[1773224821471,0.00616,69487.0,69483.0,7.5e-05]
[1773224822071,0.00522001,69494.0,69483.0,7.5e-05]
[1773224822281,0.00116,69493.0,69483.0,7.5e-05]
[1773224822843,0.00116,69492.0,69484.0,0.00611353]
[1773224823193,0.07216914,69494.0,69483.0,7.5e-05]
[1773224823194,0.00116,69491.0,69483.0,7.5e-05]
[1773224823494,0.00116,69491.0,69479.0,0.07196415]
[1773224823694,0.00116,69491.0,69478.0,0.07203919]
[1773224823909,0.00116,69491.0,69479.0,0.07196329]
[1773224824757,0.07195279,69490.0,69478.0,7.5e-05]
[1773224825967,7.5e-05,69487.0,69478.0,7.5e-05]
[1773224826258,0.07195279,69490.0,69478.0,7.5e-05]
[1773224828737,0.07295279,69490.0,69478.0,7.5e-05]
[1773224829889,0.07295279,69490.0,69479.0,0.00611353]
[1773224830324,0.07195279,69490.0,69479.0,0.00611353]
[1773224830625,0.07336629,69491.0,69479.0,0.00611353]
[1773224830828,0.00116,69490.0,69481.0,0.00611353]
[1773224831006,0.0002535,69491.0,69481.0,0.00611353]
[1773224831206,0.00116,69490.0,69481.0,0.00611353]
[1773224831593,0.00116,69490.0,69482.0,0.07196108]
[1773224831928,0.00116,69490.0,69483.0,0.00611353]
[1773224832075,0.00116,69489.0,69483.0,0.00611353]
[1773224833111,0.0012846,69489.0,69483.0,0.00611353]
[1773224833309,0.0001246,69489.0,69483.0,0.00611353]
[1773224833503,0.0001246,69489.0,69483.0,0.00618853]
[1773224833701,0.0001246,69489.0,69484.0,0.07195901]
[1773224833904,0.0001246,69489.0,69484.0,0.07867587]
[1773224834793,0.0012846,69489.0,69484.0,0.07867587]
[1773224835204,0.0001246,69489.0,69484.0,0.07867587]
[1773224835404,0.0012846,69489.0,69484.0,0.07867587]
[1773224836691,0.0001246,69489.0,69484.0,0.07867587]
[1773224836912,0.0012846,69489.0,69484.0,0.07867587]
[1773224837113,0.0012846,69489.0,69484.0,0.07195901]
[1773224837313,0.0001246,69489.0,69484.0,0.07195901]
[1773224839168,0.0001246,69489.0,69483.0,7.5e-05]
[1773224840291,0.0011246,69489.0,69483.0,7.5e-05]
[1773224840504,0.0001246,69489.0,69483.0,7.5e-05]
[1773224841153,0.0001246,69489.0,69479.0,0.07216419]
[1773224841154,0.0001246,69489.0,69479.0,0.0002]
[1773224841999,0.0011246,69489.0,69479.0,0.0002]
[1773224843811,0.07195486,69488.0,69479.0,0.0002]
[1773224844312,0.07207946,69488.0,69479.0,0.0002]
[1773224844512,0.0001246,69488.0,69479.0,0.00580106]
[1773224844838,0.00116,69487.0,69479.0,0.00580106]
[1773224845166,0.0012846,69487.0,69479.0,0.00580106]
[1773224846361,0.07324072,69487.0,69479.0,0.00580106]
[1773224847069,0.07331572,69487.0,69479.0,0.00580106]
[1773224847431,0.0013596,69487.0,69479.0,0.00580106]
[1773224848568,0.0013596,69487.0,69479.0,0.07216405]
[1773224848736,0.00116,69489.0,69480.0,0.00560106]
[1773224849336,0.0002039,69491.0,69480.0,0.00560106]
[1773224849530,0.00116,69490.0,69480.0,0.00560106]
[1773224849873,0.0002039,69491.0,69480.0,0.00560106]
[1773224850099,0.0013639,69491.0,69480.0,0.00560106]
[1773224850618,0.00116,69490.0,69482.0,0.00560106]
[1773224851387,0.07215613,69491.0,69482.0,0.00560106]
[1773224851639,0.00116,69490.0,69482.0,0.00560106]
[1773224852416,0.07215577,69491.0,69482.0,0.00560106]
[1773224852620,0.00116,69490.0,69482.0,0.00560106]
[1773224852856,0.00022001,69489.0,69482.0,0.00560106]
[1773224853067,0.00022001,69489.0,69482.0,0.07756214]
[1773224853266,0.00022001,69489.0,69482.0,0.07756174]
[1773224854021,0.00022001,69489.0,69483.0,7.5e-05]
[1773224854967,0.00022001,69489.0,69484.0,0.00848962]
[1773224856777,0.00022001,69489.0,69484.0,0.08044841]
[1773224857197,0.00022001,69489.0,69484.0,0.08044852]
[1773224857499,0.07216868,69494.0,69484.0,0.08044852]
[1773224857500,0.00029501,69496.0,69485.0,0.00848962]
[1773224857701,0.11479861,69504.0,69491.0,0.00848962]
[1773224857702,0.07310089,69502.0,69491.0,0.00848962]
[1773224857880,0.00138001,69501.0,69491.0,0.00848962]
[1773224858676,0.00022001,69501.0,69491.0,0.00848962]
[1773224858880,0.00034891,69505.0,69493.0,0.00848962]
[1773224859199,0.00116,69504.0,69493.0,0.00848962]
[1773224859405,0.00034891,69505.0,69493.0,0.00848962]
[1773224859720,0.00150891,69505.0,69493.0,0.00848962]
[1773224860060,0.00116,69504.0,69500.0,0.00856462]
[1773224860279,0.00044016,69505.0,69500.0,0.00856462]
[1773224860692,0.00138001,69508.0,69500.0,0.00856462]
[1773224860693,0.00022001,69508.0,69500.0,0.00856462]
[1773224860891,0.00059329,69508.0,69502.0,0.00848962]
[1773224861386,0.07332668,69508.0,69500.0,7.5e-05]
[1773224862200,0.00022001,69505.0,69500.0,7.5e-05]
[1773224862427,0.00022001,69505.0,69500.0,0.0005125]
[1773224863173,0.0721583,69505.0,69500.0,0.0005125]
[1773224864619,0.0731583,69505.0,69500.0,0.0005125]
[1773224864814,0.0721583,69505.0,69500.0,0.0005125]
[1773224865219,0.0731583,69505.0,69500.0,0.0005125]
[1773224866538,0.0721583,69505.0,69500.0,0.0005125]
[1773224866739,0.0731583,69505.0,69500.0,0.0005125]
[1773224867623,0.0721583,69505.0,69500.0,0.0005125]
[1773224868052,0.0721583,69505.0,69496.0,7.5e-05]
[1773224868053,0.0731583,69505.0,69496.0,7.5e-05]
[1773224868260,0.0721583,69505.0,69496.0,7.5e-05]
[1773224868465,0.0731583,69505.0,69496.0,7.5e-05]
[1773224869025,0.0741583,69505.0,69496.0,7.5e-05]
[1773224869778,7.5e-05,69504.0,69496.0,7.5e-05]
[1773224871994,0.001075,69504.0,69496.0,7.5e-05]
[1773224873796,0.07193934,69503.0,69496.0,7.5e-05]
[1773224873998,0.00116,69502.0,69496.0,7.5e-05]
[1773224875805,0.07310136,69502.0,69496.0,7.5e-05]
[1773224876171,0.07310136,69502.0,69494.0,0.0001516]
[1773224877902,7.5e-05,69500.0,69494.0,0.0001516]
[1773224879535,7.5e-05,69500.0,69483.0,0.07203455]
[1773224879738,7.5e-05,69500.0,69488.0,0.00855692]
[1773224879910,7.5e-05,69500.0,69488.0,0.07195383]
[1773224880087,0.00116,69499.0,69491.0,0.00855692]
[1773224880501,7.5e-05,69500.0,69491.0,0.00855692]
[1773224880691,7.5e-05,69504.0,69491.0,0.00855692]
[1773224880692,0.00116,69499.0,69491.0,0.00855692]
[1773224881114,0.00116,69499.0,69488.0,0.00860926]
[1773224881693,0.00116,69499.0,69487.0,7.5e-05]
[1773224882093,0.07194451,69498.0,69487.0,7.5e-05]
[1773224884324,7.5e-05,69496.0,69487.0,0.000275]
[1773224885372,0.07294451,69498.0,69487.0,0.000275]
[1773224885659,0.07194451,69498.0,69487.0,0.000275]
[1773224886607,0.001,69496.0,69487.0,0.000275]
[1773224886813,0.07294451,69498.0,69487.0,0.000275]
[1773224887223,0.00116,69497.0,69488.0,0.00872571]
[1773224887658,0.07215806,69505.0,69489.0,0.00872571]
[1773224887659,0.07215729,69505.0,69489.0,0.00872571]
[1773224887973,0.07201354,69504.0,69491.0,0.00872571]
[1773224888126,0.00116,69503.0,69491.0,0.00872571]
[1773224888950,0.07310009,69503.0,69493.0,0.00878062]
[1773224890022,0.00116,69503.0,69493.0,0.00878062]
[1773224890223,0.00116,69506.0,69493.0,0.00878062]
[1773224890504,0.00116,69506.0,69497.0,0.00878062]
[1773224890706,0.00116,69506.0,69501.0,0.00878062]
[1773224890886,0.00116,69507.0,69502.0,0.07194037]
[1773224891090,0.00116,69507.0,69503.0,0.0088441]
[1773224891291,0.07215145,69511.0,69503.0,0.0088441]
[1773224891494,0.00116,69510.0,69503.0,0.0088441]
[1773224891724,0.00116,69510.0,69504.0,7.5e-05]
[1773224891936,0.00116,69509.0,69505.0,0.0088441]
[1773224892142,0.00116,69509.0,69502.0,0.00011202]
[1773224892303,0.07215145,69511.0,69502.0,0.00011202]
[1773224892504,0.00116,69508.0,69502.0,0.00011202]
[1773224892892,0.00116,69508.0,69497.0,0.0002]
[1773224892893,0.0719352,69507.0,69497.0,0.0002]
[1773224893091,0.07200496,69507.0,69497.0,0.0002]
[1773224893294,6.976e-05,69507.0,69498.0,0.00890963]
[1773224894108,0.00106976,69507.0,69498.0,0.00890963]
[1773224894318,6.976e-05,69507.0,69498.0,0.00890963]
[1773224894668,0.00106976,69507.0,69498.0,0.00890963]
[1773224895083,0.00022001,69511.0,69500.0,0.00897481]
[1773224895221,0.00022001,69511.0,69500.0,0.00934809]
[1773224895765,0.07215108,69511.0,69500.0,0.00934809]
[1773224896815,0.00122001,69511.0,69500.0,0.00934809]
[1773224897288,0.00122001,69511.0,69502.0,0.00892253]
[1773224899186,0.00116,69510.0,69503.0,0.07193934]
[1773224899411,0.00116,69510.0,69504.0,0.0089884]
[1773224899619,0.07200587,69513.0,69504.0,0.0089884]
[1773224899620,0.0001516,69515.0,69504.0,0.0089884]
[1773224899999,0.00022001,69511.0,69504.0,0.0089884]
[1773224901187,0.00022001,69511.0,69505.0,0.07193727]
[1773224901535,7.5e-05,69509.0,69506.0,0.01013242]
[1773224902365,7.5e-05,69530.0,69506.0,0.01013242]
[1773224902520,1e-08,69524.0,69506.0,0.01013242]
[1773224902721,1e-08,69524.0,69512.0,0.01019828]
[1773224902919,1e-08,69524.0,69514.0,0.01019828]
[1773224903354,1e-08,69524.0,69515.0,0.07192692]
[1773224903516,1e-08,69524.0,69516.0,0.01019828]
[1773224905039,1e-08,69524.0,69515.0,0.001]
[1773224905477,1e-08,69524.0,69515.0,0.07292651]
[1773224905864,1e-08,69524.0,69515.0,0.07192651]
[1773224906765,1e-08,69524.0,69516.0,0.001]
[1773224907468,1e-08,69524.0,69517.0,0.07192485]
[1773224907869,0.00022002,69524.0,69517.0,0.07192485]
[1773224908721,0.00022002,69524.0,69515.0,0.07192649]
[1773224908967,0.00022002,69524.0,69513.0,0.08221771]
[1773224909399,0.00022002,69524.0,69513.0,0.08229271]
[1773224909882,0.07213769,69524.0,69513.0,0.08229271]
[1773224910046,0.07213769,69524.0,69513.0,0.07200347]
[1773224910252,0.07213769,69524.0,69517.0,7.5e-05]
[1773224910858,0.07313769,69524.0,69513.0,0.07200326]
[1773224911060,0.07213769,69524.0,69513.0,0.07200326]
[1773224911462,0.07413769,69524.0,69513.0,0.07200326]
[1773224911661,0.07413769,69524.0,69514.0,0.00960724]
[1773224912648,0.07213769,69524.0,69514.0,0.00960724]
[1773224913171,0.07313769,69524.0,69514.0,0.00960724]
[1773224913511,0.07213769,69524.0,69514.0,0.00960724]
[1773224914151,0.07213769,69524.0,69515.0,0.07192692]
[1773224914393,0.07213769,69524.0,69514.0,0.08153416]
[1773224914394,0.07213769,69524.0,69499.0,0.07194348]
[1773224914593,0.0002533,69509.0,69494.0,0.00015159]
[1773224914787,0.03976545,69510.0,69494.0,0.00015159]
[1773224914788,0.00011677,69507.0,69494.0,0.00015159]
[1773224915398,0.14281987,69519.0,69498.0,0.00494161]
[1773224915553,0.00011677,69517.0,69498.0,0.00494161]
[1773224915754,0.00011677,69517.0,69502.0,0.0002]
[1773224916152,0.03976545,69520.0,69502.0,0.0002]
[1773224916153,0.00011677,69515.0,69502.0,0.0002]
[1773224917623,0.002,69515.0,69502.0,0.0002]
[1773224917768,0.001,69515.0,69502.0,0.0002]
[1773224918209,0.002,69515.0,69502.0,0.0002]
[1773224918873,0.07192795,69514.0,69502.0,0.0002]
[1773224920615,0.07392795,69514.0,69502.0,0.0002]
[1773224921019,0.03976545,69512.0,69502.0,0.0002]
[1773224922192,0.07392795,69514.0,69502.0,0.0002]
[1773224922357,0.07292795,69514.0,69502.0,0.0002]
[1773224922561,0.07192795,69514.0,69502.0,0.0002]
[1773224922764,0.04076545,69512.0,69495.0,0.00031599]
[1773224922996,7.5e-05,69500.0,69495.0,0.00031599]
[1773224923987,0.07193106,69511.0,69496.0,0.00633286]
[1773224924216,0.00116,69510.0,69496.0,0.00633286]
[1773224924456,0.00116,69509.0,69496.0,0.00633286]
[1773224924787,7.5e-05,69504.0,69496.0,0.00633286]
[1773224924989,0.00116,69503.0,69498.0,0.00618697]
[1773224926761,0.00116,69503.0,69498.0,0.00718697]
[1773224927046,0.00116,69503.0,69498.0,0.00618697]
[1773224927210,0.00116,69503.0,69498.0,0.00718697]
[1773224928470,0.00116,69503.0,69499.0,0.00624828]
[1773224928862,0.00116,69504.0,69499.0,0.00624828]
[1773224929061,0.00116,69504.0,69500.0,0.07194244]
[1773224929231,7.5e-05,69509.0,69501.0,0.00622973]
[1773224929432,0.0003733,69511.0,69501.0,0.00622973]
[1773224929795,0.00116,69510.0,69501.0,0.00622973]
[1773224930147,0.00116,69509.0,69501.0,0.00622973]
[1773224930671,0.00116,69508.0,69501.0,0.00622973]
[1773224930981,0.00116,69508.0,69501.0,0.00722973]
[1773224931225,0.07230471,69511.0,69503.0,0.00629874]
[1773224932724,0.0003733,69511.0,69503.0,0.00629874]
[1773224933299,0.0003733,69511.0,69505.0,0.00632158]
[1773224933511,0.07230451,69511.0,69505.0,0.00632158]
[1773224933912,0.07330451,69511.0,69505.0,0.00632158]
[1773224934115,0.07230451,69511.0,69505.0,0.00632158]
[1773224935702,0.07252452,69511.0,69505.0,0.00632158]
[1773224936675,0.00116,69510.0,69505.0,0.00632158]
[1773224938045,0.00116,69510.0,69505.0,0.07193715]
[1773224938269,0.00116,69510.0,69506.0,0.00644762]
[1773224938485,0.00116,69509.0,69506.0,0.00644762]
[1773224940166,0.07309406,69509.0,69500.0,7.5e-05]
[1773224940365,0.00116,69509.0,69500.0,7.5e-05]
[1773224940755,0.00116,69509.0,69500.0,0.00659134]
[1773224942002,0.001235,69509.0,69500.0,0.00659134]
[1773224942334,0.001235,69509.0,69501.0,0.07852053]
[1773224944227,0.00145501,69509.0,69501.0,0.07852053]
[1773224945010,0.07338827,69509.0,69501.0,0.07852053]
[1773224945220,0.00145501,69509.0,69501.0,0.07852053]
[1773224947455,0.00145501,69509.0,69502.0,0.00712573]
[1773224947657,7.5e-05,69513.0,69502.0,0.00712573]
[1773224947887,0.00116,69512.0,69502.0,0.00749903]
[1773224948089,0.00116,69513.0,69502.0,0.00749903]
[1773224948896,0.00116,69513.0,69503.0,0.07193934]
[1773224949096,0.07308909,69513.0,69504.0,0.00712573]
[1773224950100,0.00116,69513.0,69504.0,0.00712573]
[1773224951621,0.00116,69513.0,69505.0,0.07193727]
[1773224951975,0.00116,69513.0,69506.0,0.00712573]
[1773224953125,0.00138001,69513.0,69506.0,0.00712573]
[1773224953489,0.00138001,69513.0,69509.0,7.5e-05]
[1773224953693,0.00138001,69513.0,69511.0,0.07193106]
[1773224953891,1e-08,69513.0,69511.0,0.07193106]
[1773224954072,1e-08,69513.0,69510.0,0.00712573]
[1773224955186,1e-08,69513.0,69509.0,7.5e-05]
[1773224958170,1e-08,69513.0,69504.0,0.07201276]
[1773224960305,1e-08,69513.0,69504.0,0.07913849]
[1773224961182,1e-08,69513.0,69504.0,0.07201276]
[1773224961377,1e-08,69513.0,69504.0,0.07913849]
[1773224961607,1e-08,69513.0,69505.0,0.00712573]
[1773224962833,7.501e-05,69513.0,69506.0,0.07193623]
[1773224963803,7.501e-05,69513.0,69505.0,0.07906263]
[1773224966248,7.501e-05,69513.0,69506.0,0.00712573]
[1773224968379,0.00116,69512.0,69507.0,0.0719352]
[1773224968517,0.00116,69512.0,69508.0,0.00712573]
[1773224971142,7.5e-05,69517.0,69508.0,0.00712573]
[1773224971143,7.5e-05,69530.0,69508.0,0.00712573]
[1773224971344,1e-08,69524.0,69511.0,0.00712573]
[1773224971659,0.00116,69523.0,69511.0,0.00712573]
[1773224973150,0.00116,69523.0,69513.0,0.00712573]
[1773224973926,0.00116,69522.0,69513.0,0.00712573]
[1773224974422,0.00116,69522.0,69518.0,0.00712573]
[1773224975154,0.00116,69522.0,69519.0,0.07192278]
[1773224975503,0.00116,69522.0,69520.0,0.00712573]
[1773224976340,0.00116,69523.0,69519.0,0.07192278]
[1773224977365,0.00116,69523.0,69518.0,0.07192278]
[1773224977564,0.00196662,69523.0,69518.0,0.07904851]
[1773224978331,0.00196662,69523.0,69517.0,0.07199967]
[1773224996562,0.00080662,69523.0,69517.0,0.07199967]
[1773224997117,0.0719147,69527.0,69517.0,0.07199967]
[1773224997118,0.11454479,69540.0,69518.0,0.00550383]
[1773224997330,0.00116,69533.0,69526.0,0.00550383]
[1773224997542,0.00116,69533.0,69520.0,0.47280302]
[1773224997543,0.00116,69533.0,69521.0,0.00550383]
[1773224997745,0.01689694,69539.0,69530.0,0.00550383]
[1773224997945,0.08879906,69539.0,69530.0,0.00550383]
[1773224998114,0.01689694,69539.0,69530.0,0.00550383]
[1773224998628,0.01700889,69539.0,69530.0,0.00550383]
[1773224999163,0.00116,69538.0,69530.0,0.00550383]
[1773224999924,0.00116,69538.0,69531.0,0.0774142]
[1773225000998,0.01700889,69539.0,69532.0,0.00550383]
[1773225000999,1e-08,69539.0,69532.0,0.00550383]
[1773225001162,7.5e-05,69543.0,69532.0,0.00550383]
[1773225001363,0.001235,69543.0,69532.0,0.00561578]
[1773225001976,0.001235,69543.0,69535.0,0.00550383]
[1773225002247,7.5e-05,69543.0,69535.0,0.00550383]
[1773225002417,0.00116,69550.0,69537.0,0.00550383]
[1773225002619,0.07201344,69553.0,69540.0,0.03975646]
[1773225002620,0.0001254,69553.0,69540.0,0.03975646]
[1773225002763,0.0001254,69553.0,69541.0,0.00550383]
[1773225003747,0.00116,69554.0,69541.0,0.00550383]
[1773225003965,0.00116,69554.0,69542.0,0.07189899]
[1773225004161,0.00116,69554.0,69543.0,0.00550383]
[1773225005807,0.00116,69554.0,69543.0,0.00650383]
[1773225006178,0.00116,69554.0,69544.0,0.07189692]
[1773225006346,0.00116,69554.0,69544.0,0.07740075]
[1773225006544,0.07304675,69554.0,69540.0,0.0001442]
[1773225006749,0.07304675,69554.0,69532.0,0.07202093]
[1773225006750,0.03975646,69550.0,69532.0,0.07318048]
[1773225006993,0.03975646,69550.0,69532.0,0.07202048]
[1773225007856,0.03975646,69550.0,69532.0,0.07202117]
[1773225008255,0.03975646,69550.0,69544.0,0.001]
[1773225008457,0.07189175,69549.0,69531.0,0.0001637]
[1773225008705,0.07189175,69549.0,69522.0,0.0002387]
[1773225008706,0.3975646,69541.0,69522.0,0.0002387]
[1773225008917,0.09164625,69533.0,69522.0,0.0002387]
[1773225009204,0.00116,69532.0,69522.0,0.0721583]
[1773225009765,0.001085,69532.0,69522.0,0.0721583]
[1773225010583,0.07183537,69531.0,69522.0,0.0721583]
[1773225011533,0.07176037,69531.0,69522.0,0.0721583]
[1773225012115,0.07299436,69532.0,69522.0,0.0721583]
[1773225012332,0.07291936,69532.0,69522.0,0.0721583]
[1773225012982,0.07190925,69533.0,69523.0,0.00550383]
[1773225013144,0.00116,69531.0,69523.0,0.00550383]
[1773225013345,7.5e-05,69530.0,69523.0,0.00550383]
[1773225013742,7.5e-05,69530.0,69522.0,0.0721583]
[1773225014322,7.5e-05,69530.0,69522.0,0.0002387]
[1773225014526,7.5e-05,69530.0,69519.0,0.07192231]
[1773225014948,7.5e-05,69530.0,69517.0,0.000275]
[1773225014949,0.0719864,69530.0,69517.0,0.07219924]
[1773225015645,0.0719864,69530.0,69522.0,0.0002]
[1773225016275,0.00116,69529.0,69523.0,0.00550383]
[1773225016624,0.00116,69529.0,69522.0,0.0002]
[1773225017131,0.07307288,69529.0,69522.0,0.0002]
[1773225022257,0.00116,69529.0,69522.0,0.0002]
[1773225022435,0.07307248,69529.0,69522.0,0.0002]
[1773225022843,7.5e-05,69526.0,69522.0,0.0002]
[1773225025696,0.00116,69529.0,69523.0,0.00550383]
[1773225025845,0.00127184,69529.0,69523.0,0.00550383]
[1773225026645,0.07197718,69539.0,69523.0,0.00550383]
[1773225026851,0.00116,69533.0,69523.0,0.00550383]
[1773225027673,7.5e-05,69539.0,69524.0,0.07191761]
[1773225027839,0.00116,69534.0,69525.0,0.00550383]
[1773225029962,0.07306812,69534.0,69526.0,0.07191554]
[1773225030366,0.07306812,69534.0,69530.0,7.5e-05]
[1773225030583,0.07306812,69534.0,69525.0,0.07191607]
[1773225030884,0.07306812,69534.0,69522.0,0.0002]
[1773225031084,0.07315929,69534.0,69522.0,0.000275]
[1773225032233,0.0733793,69534.0,69526.0,7.5e-05]
[1773225033834,0.0743793,69534.0,69526.0,7.5e-05]
[1773225034048,0.0733793,69534.0,69526.0,7.5e-05]
[1773225034390,0.0753793,69534.0,69526.0,7.5e-05]
[1773225034588,0.0743793,69534.0,69526.0,7.5e-05]
[1773225034789,0.0733793,69534.0,69526.0,7.5e-05]
[1773225035010,0.0743793,69534.0,69526.0,7.5e-05]
[1773225035996,0.0753793,69534.0,69526.0,7.5e-05]
[1773225036658,0.0753793,69534.0,69522.0,0.000275]
[1773225037555,0.0743793,69534.0,69522.0,0.000275]
[1773225037764,0.0753793,69534.0,69522.0,0.000275]
[1773225037980,0.0743793,69534.0,69522.0,0.000275]
[1773225038274,0.0753793,69534.0,69522.0,0.000275]
[1773225038480,0.0743793,69534.0,69522.0,0.000275]
[1773225039273,0.0743793,69534.0,69522.0,0.0721943]
[1773225039454,0.00116,69533.0,69523.0,0.00550383]
[1773225040696,0.00116,69533.0,69524.0,0.07742144]
[1773225041696,7.5e-05,69530.0,69524.0,0.07742144]
[1773225042705,7.5e-05,69530.0,69525.0,0.00550383]
[1773225046194,7.5e-05,69530.0,69525.0,0.07742006]
[1773225047185,7.5e-05,69530.0,69525.0,0.07762006]
[1773225048138,7.5e-05,69530.0,69525.0,0.07211623]
[1773225048340,7.5e-05,69530.0,69525.0,0.0002]
[1773225055531,7.5e-05,69530.0,69525.0,0.00570383]
[1773225056444,7.5e-05,69530.0,69526.0,0.07191554]
[1773225056670,7.5e-05,69530.0,69527.0,0.00550383]
[1773225057281,7.5e-05,69530.0,69526.0,0.07191554]
[1773225058254,7.5e-05,69530.0,69525.0,0.07211628]
[1773225059281,7.5e-05,69530.0,69525.0,0.0002]
[1773225060058,7.5e-05,69530.0,69525.0,0.00570383]
[1773225061673,7.5e-05,69530.0,69525.0,0.0002]
[1773225062334,7.5e-05,69530.0,69511.0,0.17269232]
[1773225062533,0.03973594,69525.0,69511.0,0.0002]
[1773225062733,7.5e-05,69530.0,69511.0,0.07213103]
[1773225062734,0.00116,69524.0,69511.0,0.07213103]
[1773225063109,0.00116,69524.0,69512.0,0.07192993]
[1773225063314,0.00116,69524.0,69518.0,0.0002]
[1773225063948,0.07191864,69523.0,69518.0,0.0002]
[1773225064618,7.5e-05,69522.0,69518.0,0.0002]
[1773225065309,7.5e-05,69522.0,69518.0,0.0004376]
[1773225066849,0.002075,69522.0,69518.0,0.0004376]
[1773225067272,0.002075,69522.0,69514.0,0.0001602]
[1773225068045,0.001075,69522.0,69514.0,0.0001602]
[1773225068992,0.07192071,69521.0,69514.0,0.0001602]
[1773225069196,0.07192071,69521.0,69514.0,0.00566403]
[1773225070298,0.07192071,69521.0,69514.0,0.00586403]
[1773225072255,0.07199571,69522.0,69514.0,0.00586403]
[1773225073696,0.07299571,69522.0,69514.0,0.00586403]
[1773225075284,0.07299571,69522.0,69514.0,0.0003602]
[1773225077129,0.07199571,69522.0,69514.0,0.0003602]
[1773225077327,0.07299571,69522.0,69514.0,0.0003602]
[1773225077606,0.07399571,69522.0,69514.0,0.0003602]
[1773225078051,0.07299571,69522.0,69514.0,0.0003602]
[1773225078623,0.07199571,69522.0,69514.0,0.0003602]
[1773225079054,0.07299571,69522.0,69514.0,0.0003602]
[1773225079262,0.07307864,69524.0,69514.0,0.0003602]
[1773225079263,7.5e-05,69526.0,69515.0,0.00550383]
[1773225079496,0.001,69522.0,69515.0,0.00550383]
[1773225079861,0.00116,69525.0,69515.0,0.00550383]
[1773225080400,0.001235,69526.0,69515.0,0.00550383]
[1773225080668,0.07191453,69527.0,69515.0,0.00550383]
[1773225080866,0.07191347,69528.0,69515.0,0.00550383]
[1773225081023,0.00116,69528.0,69520.0,0.00550383]
[1773225081225,0.00029501,69530.0,69522.0,0.00550383]
[1773225081226,0.00145501,69530.0,69522.0,0.00550383]
[1773225081427,0.07220658,69530.0,69522.0,0.00550383]
[1773225081665,0.00116,69529.0,69522.0,0.00550383]
[1773225083381,0.00116,69529.0,69522.0,0.07742291]
[1773225084543,0.07307244,69529.0,69522.0,0.07742291]
[1773225084724,0.07307244,69529.0,69522.0,0.00550383]
[1773225084922,0.07307244,69529.0,69513.0,0.000275]
[1773225085120,0.0397518,69524.0,69513.0,0.000275]
[1773225085327,0.07329245,69529.0,69513.0,0.000275]
[1773225085328,0.00116,69523.0,69513.0,0.000275]
[1773225086319,0.00116,69523.0,69511.0,0.0002]
[1773225086561,0.0397518,69521.0,69507.0,0.0002]
[1773225087554,0.07192174,69520.0,69507.0,0.0002]
[1773225089319,0.07292174,69520.0,69507.0,0.0002]
[1773225089548,0.07192174,69520.0,69507.0,0.0002]
[1773225089760,0.07274109,69520.0,69507.0,0.0002]
[1773225090075,0.00116,69519.0,69508.0,0.00550383]